fUSD/lending_fUSD_20250930
["ID","MTS","AMOUNT","RATE_DAILY","PERIOD"]
[388608241,1759251055037,-500.0,0.0002,2]
[388608242,1759251055048,-504.99,0.0002,2]
[388608243,1759251055059,-500.0,0.0002,2]
[388608244,1759251055071,-500.0,0.0002,2]
[388608245,1759251055082,-500.0,0.0002,2]
[388608246,1759251055093,-500.0,0.0002,2]
[388608247,1759251055104,-1322.97,0.0002,2]
[388608248,1759251055115,-1205.42,0.0002,2]
[388608249,1759251055126,-500.0,0.0002,2]
[388608250,1759251055137,-500.0,0.0002,2]
[388608251,1759251055147,-500.0,0.0002,2]
[388608252,1759251055158,-1233.77,0.0002,2]
[388608253,1759251055168,-500.0,0.0002,2]
[388608254,1759251055181,-567.73,0.0002,2]
[388608255,1759251055192,-500.0,0.0002,2]
[388608256,1759251055209,-500.0,0.0002,2]
[388608257,1759251055220,-705.75,0.0002,2]
[388608258,1759251055232,-755.63,0.0002,2]
[388608259,1759251055243,-500.0,0.0002,2]
[388608260,1759251055255,-1212.03,0.0002,2]
[388608261,1759251055265,-666.26,0.0002,2]
[388608262,1759251055276,-500.0,0.0002,2]
[388608263,1759251055287,-574.97,0.0002,2]
[388608264,1759251055298,-500.0,0.0002,2]
[388608265,1759251055309,-453.28364622,0.0002,2]
[388608266,1759251055319,-151.0,0.0002,2]
[388608267,1759251055329,-1161.27,0.0002,2]
[388608268,1759251055341,-500.0,0.0002,2]
[388608269,1759251055353,-664.98,0.0002,2]
[388608270,1759251055365,-2168.5,0.0002,2]
[388608271,1759251055376,-1285.24,0.0002,2]
[388608272,1759251055386,-500.0,0.0002,2]
[388608273,1759251055396,-500.0,0.0002,2]
[388608274,1759251055406,-500.0,0.0002,2]
[388608275,1759251055416,-500.0,0.0002,2]
[388608276,1759251055426,-677.4,0.0002,2]
[388608277,1759251055437,-150.0,0.0002,2]
[388608278,1759251055448,-500.0,0.0002,2]
[388608279,1759251055459,-1671.05,0.0002,2]
[388608280,1759251055471,-1312.17,0.0002,2]
[388608281,1759251055484,-500.0,0.0002,2]
[388608282,1759251055494,-578.42,0.0002,2]
[388608283,1759251055504,-2200.27,0.0002,2]
[388608284,1759251055515,-748.11,0.0002,2]
[388608285,1759251055525,-849.42,0.0002,2]
[388608286,1759251055535,-500.0,0.0002,2]
[388608287,1759251056654,-718.49,0.0002,2]
[388608288,1759251056676,-655.43,0.0002,2]
[388608289,1759251056698,-1188.14,0.0002,2]
[388608290,1759251056718,-555.26,0.0002,2]
[388608291,1759251056737,-547.2712154,0.0002,2]
[388608292,1759251056753,-500.0,0.0002,2]
[388608293,1759251056763,-1069.66,0.0002,2]
[388608294,1759251056772,-500.0,0.0002,2]
[388608295,1759251056781,-512.69,0.0002,2]
[388608296,1759251056790,-265.424058,0.0002,2]
[388608297,1759251056800,-500.0,0.0002,2]
[388608298,1759251056808,-500.0,0.0002,2]
[388608299,1759251056818,-500.0,0.0002,2]
[388608300,1759251056827,-151.0,0.0002,2]
[388608301,1759251056836,-500.0,0.0002,2]
[388608302,1759251056845,-500.0,0.0002,2]
[388608303,1759251056854,-703.38,0.0002,2]
[388608304,1759251056863,-500.0,0.0002,2]
[388608305,1759251056872,-500.0,0.0002,2]
[388608306,1759251056881,-500.0,0.0002,2]
[388608307,1759251056890,-500.0,0.0002,2]
[388608308,1759251056900,-1071.55,0.0002,2]
[388608309,1759251056909,-500.0,0.0002,2]
[388608310,1759251056918,-500.0,0.0002,2]
[388608311,1759251056927,-500.0,0.0002,2]
[388608312,1759251056936,-500.0,0.0002,2]
[388608313,1759251056945,-500.0,0.0002,2]
[388608314,1759251056956,-624.09,0.0002,2]
[388608315,1759251056965,-500.0,0.0002,2]
[388608316,1759251056974,-1433.0,0.0002,2]
[388608317,1759251056983,-1306.15,0.0002,2]
[388608318,1759251056992,-500.0,0.0002,2]
[388608319,1759251057001,-507.95,0.0002,2]
[388608320,1759251057010,-500.0,0.0002,2]
[388608321,1759251057019,-500.0,0.0002,2]
[388608322,1759251057029,-500.0,0.0002,2]
[388608323,1759251057038,-500.0,0.0002,2]
[388608324,1759251057048,-691.96,0.0002,2]
[388608325,1759251057057,-500.0,0.0002,2]
[388608326,1759251057066,-153.234815,0.0002,2]
[388608327,1759251057075,-500.0,0.0002,2]
[388608328,1759251057084,-500.0,0.0002,2]
[388608329,1759251057094,-503.27,0.0002,2]
[388608330,1759251057103,-2426.67,0.0002,2]
[388608331,1759251057112,-500.0,0.0002,2]
[388608332,1759251057121,-500.0,0.0002,2]
[388608333,1759251057130,-500.0,0.0002,2]
[388608334,1759251057140,-897.86,0.0002,2]
[388608335,1759251057149,-1606.77,0.0002,2]
[388608336,1759251057158,-1187.73,0.0002,2]
[388608337,1759251057166,-151.0,0.0002,2]
[388608338,1759251057175,-500.0,0.0002,2]
[388608339,1759251057185,-1000.0,0.0002,2]
[388608340,1759251057194,-500.0,0.0002,2]
[388608341,1759251057208,-940.56,0.0002,2]
[388608342,1759251057217,-1000.0,0.0002,2]
[388608343,1759251057227,-849.71,0.0002,2]
[388608344,1759251057236,-1000.0,0.0002,2]
[388608345,1759251057247,-151.0,0.0002,2]
[388608346,1759251057257,-1000.0,0.0002,2]
[388608347,1759251057267,-2686.3,0.0002,2]
[388608348,1759251057276,-1000.0,0.0002,2]
[388608349,1759251057286,-1000.0,0.0002,2]
[388608350,1759251057295,-151.0,0.0002,2]
[388608351,1759251057304,-1000.0,0.0002,2]
[388608352,1759251057314,-1000.0,0.0002,2]
[388608353,1759251057323,-291.52923582,0.0002,2]
[388608354,1759251057331,-151.0,0.0002,2]
[388608355,1759251057341,-151.81606,0.0002,2]
[388608356,1759251057351,-281.75757,0.0002,2]
[388608357,1759251057360,-274.686923,0.0002,2]
[388608358,1759251057369,-151.0,0.0002,2]
[388608359,1759251057378,-151.0,0.0002,2]
[388608360,1759251057387,-153.70794709,0.0002,2]
[388608361,1759251057396,-150.0,0.0002,2]
[388608362,1759251057405,-514.0,0.0002,2]
[388608363,1759251057415,-1000.0,0.0002,2]
[388608364,1759251057423,-474.52590314,0.0002,7]
[388608365,1759251057433,-222.37,0.00020003,2]
[388608366,1759251057442,-1000.0,0.00020021,2]
[388608367,1759251057451,-163.44196446,0.00020027,2]
[388608368,1759251057460,-163.61883287,0.00020027,2]
[388608369,1759251057469,-517.44,0.00020043,2]
[388608370,1759251057478,-500.0,0.00020043,2]
[388608371,1759251057488,-500.0,0.00020043,2]
[388608372,1759251057496,-500.0,0.00020043,2]
[388608373,1759251057506,-856.51,0.00020043,2]
[388608374,1759251057515,-656.82,0.00020043,2]
[388608375,1759251057524,-500.0,0.00020043,2]
[388608376,1759251057534,-500.0,0.00020043,2]
[388608377,1759251057543,-1477.66,0.00020043,2]
[388608378,1759251057552,-526.95,0.00020043,2]
[388608379,1759251057561,-500.0,0.00020043,2]
[388608380,1759251057570,-937.65,0.00020043,2]
[388608381,1759251057579,-500.0,0.00020043,2]
[388608382,1759251057588,-500.0,0.00020043,2]
[388608383,1759251057597,-945.38,0.00020053,2]
[388608384,1759251057606,-302.99783864,0.00020055,2]
[388608385,1759251057620,-181.79870318,0.00020055,2]
[388608386,1759251057630,-242.3982709,0.00020055,2]
[388608387,1759251057639,-5000.0,0.00020075,2]
[388608388,1759251057648,-151.0,0.00020098,2]
[388608389,1759251057658,-163.61883287,0.0002011,2]
[388608390,1759251057667,-200.0,0.00020111,2]
[388608391,1759251057677,-500.0,0.00020112,2]
[388608392,1759251057686,-2144.84538739,0.00020121,2]
[388608393,1759251057695,-302.99783864,0.00020137,2]
[388608394,1759251057705,-181.79870318,0.00020137,2]
[388608395,1759251057714,-242.3982709,0.00020137,2]
[388608396,1759251057723,-2351.0,0.00020138,2]
[388608397,1759251057734,-200.96677742,0.00020139,2]
[388608398,1759251057744,-517.46550694,0.00020139,2]
[388608399,1759251057753,-150.76919386,0.00020139,2]
[388608400,1759251057763,-150.0,0.00020139,2]
[388608401,1759251057773,-200.0,0.00020139,2]
[388608402,1759251057783,-500.0,0.00020139,2]
[388608403,1759251057793,-150.0,0.00020139,2]
[388608404,1759251057803,-150.0,0.00020139,2]
[388608405,1759251057813,-150.0,0.00020139,2]
[388608406,1759251057822,-500.0,0.00020139,2]
[388608407,1759251057832,-150.0,0.00020139,2]
[388608408,1759251057842,-1300.0,0.00020151,2]
[388608409,1759251057852,-151.49891931,0.00020164,2]
[388608410,1759251057861,-391.51079764,0.00020173,2]
[388608411,1759251057871,-273.5428315,0.00020181,2]
[388608412,1759251057880,-382.7230835,0.00020193,2]
[388608413,1759251057889,-1901.48234373,0.000202,2]
[388608414,1759251057898,-1000.0,0.000202,2]
[388608415,1759251057908,-2359.40569977,0.00020216,2]
[388608416,1759251057918,-302.99783864,0.00020219,2]
[388608417,1759251057927,-181.79870318,0.00020219,2]
[388608418,1759251057936,-242.3982709,0.00020219,2]
[388608419,1759251057946,-163.61883287,0.00020219,2]
[388608420,1759251057955,-312.9833437,0.0002022,2]
[388608421,1759251057964,-5000.0,0.00020224,2]
[388608422,1759251057974,-3276.67395321,0.00020232,2]
[388608423,1759251057984,-150.0,0.00020247,4]
[388608424,1759251057993,-500.0,0.00020254,2]
[388608425,1759251058002,-494.0,0.00020254,2]
[388608426,1759251058011,-2070.0,0.00020254,2]
[388608427,1759251058024,-1178.0,0.00020254,2]
[388608428,1759251058033,-150.0,0.00020254,2]
[388608429,1759251058045,-1745.24,0.00020265,2]
[388608430,1759251058054,-500.0,0.00020273,2]
[388608431,1759251058065,-500.0,0.00020273,2]
[388608432,1759251058075,-500.0,0.00020273,2]
[388608433,1759251058085,-500.0,0.00020273,2]
[388608434,1759251058095,-490.72846195,0.00020273,2]
[388608435,1759251058105,-129350.92658654,0.00020273,2]
[388608436,1759251058804,-3128.1949992,0.00020273,2]
[388608437,1759251058841,-3134.41768548,0.00020273,2]
[388608438,1759251058851,-825.45,0.00020273,2]
[388608439,1759251058863,-9720.60829613,0.00020273,2]
[388608440,1759251058933,-435.22115147,0.00020273,2]
[388608441,1759251060771,-308.3858923,0.00017258,2]
[388608442,1759251061175,-691.6141077,0.00017258,2]
[388608443,1759251061185,-89438.40484008,0.00020273,2]
[388608444,1759251061194,-2943.99,0.00020273,2]
[388608445,1759251061211,-1609.04,0.00020273,2]
[388608446,1759251061221,-627.92,0.00020273,2]
[388608447,1759251061232,-500.0,0.00020273,2]
[388608448,1759251061241,-1134.21,0.00020273,2]
[388608449,1759251061251,-500.0,0.00020273,2]
[388608450,1759251061260,-500.0,0.00020273,2]
[388608451,1759251061269,-500.0,0.00020273,2]
[388608452,1759251061278,-1676.78,0.00020273,2]
[388608453,1759251061291,-1676.78,0.00020273,2]
[388608454,1759251061300,-586.9,0.00020273,2]
[388608455,1759251061310,-856.58,0.00020273,2]
[388608456,1759251061320,-556.34,0.00020273,2]
[388608457,1759251061329,-500.0,0.00020273,2]
[388608458,1759251061338,-500.0,0.00020273,2]
[388608459,1759251061349,-2830.66,0.00020273,2]
[388608460,1759251061358,-500.0,0.00020273,2]
[388608461,1759251061368,-2775.24,0.00020273,2]
[388608462,1759251061377,-500.0,0.00020273,2]
[388608463,1759251061387,-500.0,0.00020273,2]
[388608464,1759251061396,-500.0,0.00020273,2]
[388608465,1759251061406,-500.0,0.00020273,2]
[388608466,1759251061415,-140.74105222,0.00020273,2]
[388608467,1759251061518,-496.2982269,0.00020273,2]
[388608468,1759251061676,-1776.60072088,0.00020273,2]
[388608469,1759251061685,-1015.28,0.00020273,2]
[388608470,1759251061695,-500.0,0.00020273,2]
[388608471,1759251061705,-695.45,0.00020273,2]
[388608472,1759251061715,-994.38,0.00020273,2]
[388608473,1759251061724,-540.75,0.00020273,2]
[388608474,1759251061734,-328.02393235,0.00020273,2]
[388608475,1759251065493,-502.47039619,0.00020273,2]
[388608476,1759251065797,-174.90567146,0.00020273,2]
[388608477,1759251065807,-904.66,0.00020273,2]
[388608478,1759251065816,-148.19674648,0.00020273,2]
[388608479,1759251065827,-280.87,0.00020273,2]
[388608480,1759251065932,-70.93325352,0.00020273,2]
[388608481,1759251065941,-500.0,0.00020273,2]
[388608482,1759251065950,-447.79268799,0.00020273,2]
[388608483,1759251066049,-415.88731201,0.00020273,2]
[388608484,1759251066059,-1813.14,0.00020273,2]
[388608485,1759251066068,-703.73,0.00020273,2]
[388608486,1759251066077,-3400.17,0.00020273,2]
[388608487,1759251066087,-500.0,0.00020273,2]
[388608488,1759251066096,-500.0,0.00020273,2]
[388608489,1759251066105,-500.0,0.00020273,2]
[388608490,1759251066115,-1185.67,0.00020273,2]
[388608491,1759251066124,-500.0,0.00020273,2]
[388608492,1759251066133,-500.0,0.00020273,2]
[388608493,1759251066142,-500.0,0.00020273,2]
[388608494,1759251066151,-1078.9,0.00020273,2]
[388608495,1759251066160,-979.97,0.00020273,2]
[388608496,1759251066170,-500.0,0.00020273,2]
[388608497,1759251066180,-2110.3,0.00020273,2]
[388608498,1759251066189,-832.16,0.00020273,2]
[388608499,1759251066199,-968.72,0.00020273,2]
[388608500,1759251066213,-1248.58,0.00020273,2]
[388608501,1759251066227,-1452.14,0.00020273,2]
[388608502,1759251066237,-1168.3,0.00020273,2]
[388608503,1759251066247,-610.43,0.00020273,2]
[388608504,1759251066259,-661.19,0.00020273,2]
[388608505,1759251066268,-444.71268799,0.00020273,2]
[388608506,1759251066344,-292.42731201,0.00020273,2]
[388608507,1759251066354,-670.77,0.00020273,2]
[388608508,1759251066363,-888.69,0.00020273,2]
[388608509,1759251066372,-476.29470196,0.00020273,2]
[388608510,1759251066383,-827.30677729,0.00020273,2]
[388608511,1759251087295,-150.0,0.00017548,2]
[388608512,1759251160034,150.0,0.00028097,120]
[388608513,1759251224405,479.04,8.629e-05,2]
[388608514,1759251224513,479.04,9.083e-05,2]
[388608515,1759251224681,479.04,9.537e-05,2]
[388608516,1759251224910,479.04,9.991e-05,2]
[388608517,1759251225474,479.04,0.00010445,2]
[388608518,1759251225703,479.04,0.00010899,2]
[388608519,1759251226310,479.04,0.00011354,2]
[388608520,1759251226495,479.04,0.00011808,2]
[388608521,1759251226658,479.04,0.00012262,2]
[388608522,1759251226820,479.04,0.00012716,2]
[388608523,1759251227021,479.04,0.0001317,2]
[388608524,1759251227224,479.04,0.00013624,2]
[388608525,1759251227427,479.04,0.00014078,2]
[388608526,1759251227621,479.04,0.00014533,2]
[388608527,1759251227922,479.04,0.00014987,2]
[388608528,1759251228135,479.04,0.00015441,2]
[388608529,1759251228800,479.04,0.00015895,2]
[388608530,1759251229033,479.04,0.00016349,2]
[388608632,1759251332240,150.0,0.00024216,120]
[388608666,1759251392310,150.0,0.00024614,120]
[388608682,1759251632411,150.0,0.0002941,120]
[388608684,1759251709059,301.17577086,0.0003,120]
[388608687,1759251792625,173.91,0.00013806,2]
[388608690,1759251874873,150.0,0.00021884,120]
[388608691,1759251933611,150.0,0.00026704,120]
[388608692,1759251991781,150.0,0.00030115,120]
[388608693,1759252052225,150.0,0.00028895,120]
[388608694,1759252111293,150.0,0.00029106,120]
[388608695,1759252171588,150.0,0.00030113,120]
[388608696,1759252219831,638.48,0.00025886,120]
[388608697,1759252231769,150.0,0.00024624,120]
[388608699,1759252232529,-327.74,0.00016718,2]
[388608700,1759252232539,-300.0,0.00016802,2]
[388608701,1759252232549,-1200.0,0.00016802,2]
[388608702,1759252232558,-300.0,0.00016802,2]
[388608703,1759252232572,-207.65814267,0.00016802,2]
[388608704,1759252232582,-2000.0,0.00016803,2]
[388608705,1759252232592,-160.0,0.00016803,2]
[388608706,1759252232602,-479.04,0.00016803,2]
[388608707,1759252232614,-500.0,0.00016803,2]
[388608708,1759252232624,-500.0,0.00016803,2]
[388608709,1759252232635,-500.0,0.00016803,2]
[388608710,1759252232646,-500.0,0.00016803,2]
[388608711,1759252232655,-500.0,0.00016803,2]
[388608712,1759252232665,-500.0,0.00016803,2]
[388608713,1759252232675,-239.03740295,0.00016803,2]
[388608714,1759252232685,-250.0,0.00017,2]
[388608715,1759252232695,-2000.0,0.00017024,2]
[388608716,1759252232705,-582.05101685,0.00017024,2]
[388608718,1759252232715,-479.04,0.00017257,2]
[388608720,1759252232725,-682.43,0.00017258,2]
[388608721,1759252232735,-166.83,0.00017258,2]
[388608722,1759252232749,-638.48,0.00017258,2]
[388608723,1759252232761,-324.23878834,0.0001738,2]
[388608724,1759252232772,-324.23878834,0.00017385,2]
[388608725,1759252232783,-324.23878834,0.00017399,2]
[388608726,1759252232793,-324.23878834,0.00017408,2]
[388608727,1759252232802,-324.23878834,0.0001745,2]
[388608728,1759252232813,-5588.24799844,0.00017697,2]
[388608730,1759252232823,-174.88,0.00017775,2]
[388608732,1759252232833,-1000.0,0.00017807,2]
[388608734,1759252232845,-666.0,0.0001787,3]
[388608736,1759252232855,-150.0,0.00017943,7]
[388608738,1759252232864,-300.0,0.00018355,2]
[388608740,1759252232874,-420.0,0.00018355,2]
[388608742,1759252232883,-1680.0,0.00018447,2]
[388608744,1759252232892,-300.0,0.00018482,2]
[388608746,1759252232901,-502.22705372,0.00018483,2]
[388608749,1759252232911,-2000.0,0.00018483,2]
[388608752,1759252232920,-474.52590314,0.00018513,2]
[388608754,1759252232930,-578.20924308,0.00018558,2]
[388608756,1759252232939,-231.28369723,0.00018558,2]
[388608758,1759252232950,-7965.41053268,0.00018558,2]
[388608760,1759252232959,-1586.75733279,0.00018613,2]
[388608762,1759252232969,-1000.0,0.0001863,2]
[388608764,1759252232979,-1000.0,0.00018631,2]
[388608766,1759252232989,-1073.35,0.00018704,2]
[388608769,1759252232998,-199.67,0.00018731,3]
[388608770,1759252233008,-1526.19,0.0001877,2]
[388608773,1759252233019,-1282.94,0.0001877,2]
[388608775,1759252233028,-200.0,0.0001877,2]
[388608777,1759252233038,-200.0,0.0001877,2]
[388608779,1759252233047,-151.0,0.0001877,2]
[388608781,1759252233056,-601.3376128,0.0001877,2]
[388608783,1759252233066,-160.0,0.0001877,2]
[388608785,1759252233075,-151.0,0.0001877,2]
[388608787,1759252233085,-151.0,0.0001877,2]
[388608789,1759252233095,-151.0,0.0001877,2]
[388608791,1759252233104,-151.0,0.0001877,2]
[388608793,1759252233114,-151.0,0.0001877,2]
[388608795,1759252233124,-500.0,0.0001877,2]
[388608797,1759252233134,-151.0,0.0001877,2]
[388608799,1759252233148,-500.0,0.0001877,2]
[388608801,1759252233158,-151.0,0.0001877,2]
[388608803,1759252233168,-500.0,0.0001877,2]
[388608805,1759252233178,-151.0,0.0001877,2]
[388608807,1759252233187,-500.0,0.0001877,2]
[388608809,1759252233196,-151.0,0.0001877,2]
[388608811,1759252233206,-500.0,0.0001877,2]
[388608813,1759252233216,-500.0,0.0001877,2]
[388608815,1759252233227,-151.0,0.0001877,2]
[388608817,1759252233237,-500.0,0.0001877,2]
[388608819,1759252233247,-151.0,0.0001877,2]
[388608821,1759252233256,-151.0,0.0001877,2]
[388608823,1759252233265,-500.0,0.0001877,2]
[388608825,1759252233275,-151.0,0.0001877,2]
[388608827,1759252233285,-107.15866154,0.0001877,2]
[388608860,1759252234579,-500.0,0.0001877,2]
[388608861,1759252234591,-31.83942571,0.0001877,2]
[388608862,1759252234601,-151.0,0.0001877,2]
[388608863,1759252234612,-151.0,0.0001877,2]
[388608864,1759252234621,-524.63999574,0.0001877,2]
[388608865,1759252234631,-151.0,0.0001877,2]
[388608866,1759252234643,-151.0,0.0001877,2]
[388608867,1759252234652,-322.6107,0.0001877,2]
[388608868,1759252234662,-151.0,0.0001877,2]
[388608869,1759252234671,-151.0,0.0001877,2]
[388608870,1759252234681,-151.0,0.0001877,2]
[388608871,1759252234690,-163.29895366,0.0001877,2]
[388608872,1759252234699,-20234.67020439,0.00018782,2]
[388608873,1759252234709,-152.0,0.00018811,3]
[388608874,1759252234718,-1635.4372,0.000189,2]
[388608875,1759252234729,-36270.424,0.00018978,2]
[388608876,1759252234738,-500.0,0.00018999,2]
[388608877,1759252234748,-500.0,0.00018999,2]
[388608878,1759252234757,-500.0,0.00018999,2]
[388608879,1759252234767,-500.0,0.00018999,2]
[388608880,1759252234776,-500.0,0.00018999,2]
[388608881,1759252234786,-500.0,0.00018999,2]
[388608882,1759252234795,-500.0,0.00018999,2]
[388608883,1759252234804,-500.0,0.00018999,2]
[388608884,1759252234814,-500.0,0.00018999,2]
[388608885,1759252234823,-500.0,0.00018999,2]
[388608886,1759252234833,-500.0,0.00018999,2]
[388608887,1759252234843,-500.0,0.00018999,2]
[388608888,1759252234853,-500.0,0.00018999,2]
[388608889,1759252234862,-500.0,0.00018999,2]
[388608890,1759252234872,-500.0,0.00018999,2]
[388608891,1759252234882,-500.0,0.00018999,2]
[388608892,1759252234891,-500.0,0.00018999,2]
[388608893,1759252234900,-500.0,0.00018999,2]
[388608894,1759252234909,-500.0,0.00018999,2]
[388608895,1759252234918,-547.52307868,0.00018999,2]
[388608896,1759252234928,-500.0,0.00018999,2]
[388608897,1759252234937,-500.0,0.00018999,2]
[388608898,1759252234946,-500.0,0.00018999,2]
[388608899,1759252234955,-500.0,0.00018999,2]
[388608900,1759252234965,-5000.0,0.00019,2]
[388608901,1759252234975,-5000.0,0.00019,2]
[388608902,1759252234985,-5000.0,0.00019,2]
[388608903,1759252234994,-5000.0,0.00019,2]
[388608904,1759252235003,-5836.82034047,0.00019,2]
[388608905,1759252235087,-1848.09716053,0.00019,2]
[388608906,1759252235098,-1533.082499,0.00019,2]
[388608907,1759252235108,-214.79925915,0.00019044,2]
[388608908,1759252235212,-252.11824185,0.00019044,2]
[388608909,1759252235224,-1059.272499,0.00019044,2]
[388608910,1759252235234,-131.3397564,0.00019044,2]
[388608911,1759252239562,-1151.6002436,0.00019044,2]
[388608912,1759252239577,-150.0,0.000191,2]
[388608913,1759252239586,-958.4575564,0.000191,2]
[388608914,1759252239597,-1286.73195426,0.000191,2]
[388608915,1759252239790,-1305.90493124,0.000191,2]
[388608916,1759252239801,-2578.3350066,0.000191,2]
[388608917,1759252239816,-453.32999221,0.000191,2]
[388608918,1759252239827,-339.8309581,0.000191,2]
[388608920,1759252240806,-697.8,0.000191,2]
[388608921,1759252240859,-3483.29536372,0.000191,2]
[388608922,1759252240871,-1653.6116968,0.000191,2]
[388608923,1759252240880,-151.0,0.00019178,2]
[388608924,1759252240889,-983.00218599,0.00019227,2]
[388608925,1759252240898,-5571.9692267,0.00019303,2]
[388608926,1759252240908,-500.0,0.00019311,2]
[388608927,1759252240917,-1526.19,0.00019318,2]
[388608928,1759252240927,-933.22689051,0.00019318,2]
[388608929,1759252240937,-349.71310949,0.00019318,2]
[388608930,1759252240947,-2737.08899844,0.00019327,2]
[388608931,1759252240957,-3495.91100156,0.00019327,2]
[388608932,1759252240966,-8176.3684894,0.00019327,2]
[388608933,1759252241026,-331.21041743,0.00019327,2]
[388608935,1759252243488,-1000.0,0.00019227,2]
[388608936,1759252243497,-3269.20829842,0.00019327,2]
[388608940,1759252246840,-869.43771164,0.00019327,2]
[388608941,1759252246891,-6272.77508311,0.00019327,2]
[388608942,1759252246901,-10.83824041,0.00019327,2]
[388608943,1759252246934,-4102.16175959,0.00019327,2]
[388608944,1759252246943,-621.0,0.00019327,2]
[388608945,1759252246952,-2500.0,0.00019414,2]
[388608946,1759252246962,-682.43,0.00019415,2]
[388608947,1759252246971,-638.48,0.00019415,2]
[388608948,1759252246980,-2457.34980798,0.00019454,2]
[388608949,1759252246994,-1025.4,0.00019454,2]
[388608950,1759252247091,-3794.24249411,0.00019454,2]
[388608951,1759252247101,-2976.824895,0.00019484,9]
[388608952,1759252247110,-1372.273738,0.00019484,9]
[388608953,1759252247119,-3194.069174,0.00019484,9]
[388608954,1759252247128,-151.459484,0.00019484,9]
[388608955,1759252247138,-1836.02,0.000195,7]
[388608956,1759252247147,-2976.824895,0.00019514,2]
[388608957,1759252247156,-1372.273738,0.00019514,2]
[388608958,1759252247165,-3194.069174,0.00019514,2]
[388608959,1759252247174,-151.459484,0.00019514,2]
[388608960,1759252247183,-1526.19,0.00019592,2]
[388608961,1759252247192,-1282.94,0.00019592,2]
[388608962,1759252247201,-798.68749669,0.00019664,2]
[388608963,1759252247210,-645.27780785,0.00019726,2]
[388608964,1759252247219,-156.587,0.00019726,2]
[388608965,1759252247228,-580.25685365,0.00019737,2]
[388608966,1759252247239,-221.6934186,0.00019808,2]
[388608967,1759252247249,-1478.012,0.00019823,2]
[388608968,1759252247258,-983.00218596,0.00019835,2]
[388608970,1759252247267,-1000.0,0.00019859,2]
[388608972,1759252247276,-1526.19,0.00019866,2]
[388608973,1759252247284,-1282.94,0.00019866,2]
[388608974,1759252247293,-221.6934186,0.0001989,2]
[388608975,1759252247302,-1000.0,0.000199,2]
[388608976,1759252247311,-787.0,0.00019919,2]
[388608977,1759252247319,-2044.0,0.00019919,2]
[388608978,1759252247328,-1264.0,0.00019919,2]
[388608979,1759252247337,-3398.0,0.00019919,2]
[388608980,1759252247346,-603.0,0.00019919,2]
[388608981,1759252247355,-1306.0,0.00019919,2]
[388608982,1759252247364,-570.0,0.00019919,2]
[388608983,1759252247373,-1584.0,0.00019919,2]
[388608984,1759252247382,-814.0,0.00019919,2]
[388608985,1759252247391,-239.84119403,0.00019927,2]
[388608986,1759252247399,-2976.824895,0.0001995,15]
[388608987,1759252247408,-1372.273738,0.0001995,15]